Workbook

Sheet Sheet1
A1: 2025年生产部4月接收处置记录统计表 | R1: 自产废物
A2: 废物名称 | B2: 危废代码 | C2: 形态 | D2: 上月结存 | E2: 本月接收量 | F2: 处置量及工艺 | J2: 库存量 | K2: 1#库 | L2: 2#库 | M2: 干化 | N2: 罐区 | O2: 料坑 | R2: 废物名称 | S2: 上月结存 | T2: 本月产生量 | U2: 包数 | V2: 本月处理 | Y2: 库存 | Z2: 备注 | AA2: 存储位置
F3: 固废焚烧 | G3: 废液焚烧 | H3: 清洗大桶 | I3: 污泥干化 | K3: 1#库 | L3: 2#库 | M3: 干化 | N3: 罐区 | O3: 料坑 | V3: 焚烧处置 | W3: 液体炉 | X3: 拉运
A4: 含乙二醇废液 | B4: 271-001-02 | C4: 液态 | D4: 0 | J4: =D4+E4-F4-G4-H4-I4 -> 0 | P4: =K4+L4+M4+N4+O4 -> 0 | R4: 炉渣（回转窑） | S4: 264.805 | T4: =113.65-24.345 -> 89.305 | U4: 76 | X4: 111.175 | Y4: =S4+T4-V4-X4-W4 -> 242.935
A5: 反应残渣2 | B5: 271-001-02 | C5: 固态 | D5: 0 | J5: 0 | P5: 0 | R5: 飞灰（回转窑） | S5: 25.455 | T5: =18.553 -> 18.553 | U5: 44 | X5: 17.805 | Y5: 26.203
A6: 反应残渣3 | B6: 271-001-02 | C6: 半固态 | D6: 0 | J6: 0 | P6: 0 | R6: 飞灰（废液炉） | S6: 5.195 | T6: 2.525 | U6: 7 | X6: 4.095 | Y6: 3.625
A7: 废有机溶剂 | B7: 271-002-02 | C7: 液态 | D7: 0 | J7: 0 | P7: 0 | R7: 废油渣/泥 | S7: 0 | Y7: 0 | Z7: 精馏切水后剩下的罐底泥
A8: 过滤介质 | B8: 271-003-02 | C8: 固态 | D8: 0 | J8: 0 | P8: 0 | R8: 含油污水 | S8: 0 | Y8: 0 | Z8: 蒸汽清洗过程 | AA8: 2#库
A9: 废盐 | B9: 271-005-02 | C9: 固态 | D9: 0 | E9: =20.78+10.02 -> 30.8 | F9: =20.78+5.02 -> 25.8 | J9: 5 | K9: 0 | O9: 5 | P9: 5 | R9: 废商标 | S9: 0 | Y9: 0 | Z9: 除商标 | AA9: 2#库
A10: 实验室废液 | B10: 900-002-03 | C10: 液态 | D10: 14.95 | G10: =14.95 -> 14.95 | J10: 0 | P10: 0 | R10: 废残液 | S10: 0 | Y10: 0 | Z10: 抽残液 | AA10: 2#库
A11: 高危化学品 | B11: 900-002-03 | C11: 半固态 | D11: 0 | J11: 0 | P11: 0 | R11: 废渣 | S11: 0 | Y11: 0 | Z11: 清洗过程 | AA11: 2#库
A12: 一般废药品 | B12: 900-002-03 | C12: 固态 | D12: 6.94 | E12: =5.02 -> 5.02 | F12: =6.94+5.02 -> 11.96 | J12: 0 | P12: 0 | R12: 漆渣 | S12: 0 | Y12: 0 | Z12: 清洗过程
A13: 磷化铝、杀虫剂 | B13: 900-003-04 | C13: 固态 | D13: 0 | E13: =0.14 -> 0.14 | F13: =0.14 -> 0.14 | J13: 0 | P13: 0 | R13: 污水厂污泥 | S13: 0 | Y13: 0 | Z13: 水处理后产生的污泥 | AA13: 2#库
A14: 废药物、药品 杀虫剂、磷化铝等 | B14: 900-003-04 | C14: 半固态 | D14: 0 | J14: 0 | P14: 0 | R14: 废清洗剂 | S14: 0 | Y14: 0 | Z14: 清洗剂清洗过程
A15: 废盐 | B15: 263-008-04 | C15: 固态 | D15: 0 | J15: 0 | P15: 0
A16: 蒸馏残液 | B16: 263-008-04 | C16: 半固态 | D16: 0 | J16: 0 | P16: 0
A17: 废渣 | B17: 263-009-04 | C17: 固态 | D17: 0 | J17: 0 | P17: 0
A18: 污泥 | B18: 263-011-04 | C18: 半固态 | D18: 0 | E18: =9.08+8.84 -> 17.92 | F18: =9.08+8.84 -> 17.92 | J18: 0 | P18: 0
A19: 废弃木材 | B19: 201-003-05 | C19: 固态 | D19: 0 | J19: 0 | P19: 0
A20: 废有机溶剂 | B20: 900-401-06 | C20: 液态 | D20: 0 | E20: =0.01 -> 0.01 | G20: =0.01 -> 0.01 | J20: 0 | P20: 0
A21: 废有机溶剂及废物 | B21: 900-402-06 | C21: 液态 | D21: 54.1685 | E21: =28+1.6895+5.0995+1.501 -> 36.29 | F21: =0.06+5+4.96 -> 10.02 | G21: =7.8+12.8+0.2 -> 20.8 | J21: 59.6385 | L21: 59.6385 | P21: 59.6385
A22: 清洗剂、渗透剂包装物 | B22: 900-402-06 | C22: 固态 | D22: 0 | J22: 0 | P22: 0
A23: 废有机溶剂 | B23: 900-404-06 | C23: 液态 | D23: 12.762 | E23: =17.39 -> 17.39 | F23: =0.5+2.42 -> 2.92 | J23: 27.232 | L23: 27.232 | P23: 27.232
A24: 定期更换的活性炭 | B24: 900-405-06 | C24: 固态 | D24: 0 | J24: 0 | P24: 0
A25: 丙烯酸甲酯聚合物 | B25: 900-407-06 | C25: 固态 | D25: 0 | J25: 0 | P25: 0
A26: 废有机溶剂 | B26: 900-407-06 | C26: 液态 | D26: 209.1687 | E26: =17.23 -> 17.23 | F26: =5+10+12+11+1.698 -> 39.698 | G26: =22.5902 -> 22.5902 | J26: 164.1105 | L26: 164.1105 | P26: 164.1105
A27: 污泥 | B27: 900-409-06 | C27: 半固态 | D27: 0 | J27: 0 | P27: 0
A28: 油污水 | B28: 251-001-08 | C28: 液态 | D28: 703.19 | J28: 703.19 | N28: 703.19 | P28: 703.19
A29: 清罐油渣 | B29: 251-002-08 | C29: 固态 | D29: 0 | J29: 0 | P29: 0
A30: 浮渣、污泥 | B30: 251-003-08 | C30: 固态 | D30: 0 | J30: 0 | P30: 0
A31: 废滤芯 | B31: 251-012-08 | C31: 固态 | D31: 0 | J31: 0 | P31: 0
A32: 废溶剂油 | B32: 291-001-08 | C32: 液态 | D32: 0 | J32: 0 | P32: 0
A33: 废溶剂油 | B33: 291-001-08 | C33: 半固态 | D33: 15.3 | J33: 15.3 | K33: 0 | O33: 15.3 | P33: 15.3
A34: 油泥、油脚 | B34: 071-001-08 | C34: 液态 | D34: 0 | J34: 0 | P34: 0
A35: 含油泥浆 | B35: 071-002-08 | C35: 液态 | D35: 1125.3 | I35: 1125.3 | J35: 0 | P35: 0
A36: 含油岩屑 | B36: 071-002-08 | C36: 半固态 | D36: 148.674 | F36: =12.22+7.764+13.36+13.36+4.43+12.18+5.54+5.54 -> 74.394 | J36: 74.28 | M36: 74.28 | P36: 74.28
A37: 废油泥 | B37: 900-200-08 | C37: 半固态 | D37: 0 | E37: =0.01 -> 0.01 | F37: =0.01 -> 0.01 | J37: 0 | P37: 0
A38: 研磨泥 | B38: 900-200-08 | C38: 固态 | D38: 0 | E38: =12.67+23.39 -> 36.06 | F38: =12.67+23.39 -> 36.06 | J38: 0 | P38: 0
A39: HW08废油 | B39: 900-200-08 | C39: 液态 | D39: 94.46 | E39: =4.923 -> 4.923 | J39: 99.383 | K39: 4.923 | N39: 94.46 | P39: 99.383
A40: 废煤油 | B40: 900-201-08 | C40: 液态 | D40: 1.62 | F40: =1 -> 1 | J40: 0.62 | N40: 0.62 | P40: 0.62
A41: 油泥 | B41: 900-201-08 | C41: 半固态 | D41: 0 | J41: 0 | P41: 0
A42: 废润滑油废浮渣 | B42: 900-209-08 | C42: 液态 | D42: 0.82 | F42: =0.82 -> 0.82 | J42: 0 | P42: 0
A43: 废润滑脂 | B43: 900-209-08 | C43: 半固态 | D43: 0 | J43: 0
A44: 水处理浮渣及污泥 | B44: 900-210-08 | C44: 半固态 | D44: 265.684 | E44: =20.62+5.042+17.05+8.4 -> 51.112 | F44: =5.544+9 -> 14.544 | J44: 302.252 | K44: 0 | L44: 34.062 | N44: 251.14 | O44: 17.05 | P44: =K44+L44+M44+N44+O44 -> 302.252
A45: 废机油、含油废水 | B45: 900-210-08 | C45: 液态 | D45: 74.2 | E45: =19.9 -> 19.9 | J45: 94.1 | K45: 19.9 | L45: 59.9 | N45: 14.3 | P45: 94.1
A46: 废油泥 | B46: 900-210-08 | C46: 固态 | D46: 86.158 | E46: =3.999+18.4+8.7125+3.485+6.78 -> 41.3765 | F46: =6.258+13.999+24.6+8.7125+3.485 -> 57.0545 | J46: 70.48 | K46: =63.7-20 -> 43.7 | L46: 6.78 | O46: 20 | P46: 70.48
A47: 废水处理过程产废油、油泥、浮渣 | B47: 900-210-08 | C47: 液态 | D47: 0 | J47: 0 | P47: 0
A48: 废白土 | B48: 900-213-08 | C48: 固态 | D48: 0 | J48: 0 | P48: 0
A49: 废机油 | B49: 900-213-08 | C49: 液态 | D49: 0 | J49: 0 | P49: 0
A50: 废矿物油 | B50: 900-214-08 | C50: 液态 | D50: 85.75094 | E50: =6.4+0.1802+0.05 -> 6.6302 | G50: =1.61+4.88 -> 6.49 | J50: 85.89114 | N50: 85.89114 | P50: 85.89114
A51: 废锂基脂 | B51: 900-214-08 | C51: 半固态 | D51: 0 | J51: 0 | P51: 0
A52: 废矿物油 | B52: 900-217-08 | C52: 液态 | D52: 45.59315 | E52: =1.3244+8.5 -> 9.8244 | G52: =2.06 -> 2.06 | J52: 53.35755 | N52: 53.35755 | P52: 53.35755
A53: 废甘油 | B53: 900-217-08 | C53: 半固态 | D53: 0 | J53: 0 | P53: 0
A54: 废液压油 | B54: 900-218-08 | C54: 液态 | D54: 48.785 | E54: =0.05+2.76+0.8 -> 3.61 | J54: 52.395 | N54: 52.395 | P54: 52.395
A55: 废冷冻机油 | B55: 900-219-08 | C55: 液态 | D55: 5.36 | G55: =1.78 -> 1.78 | J55: 3.58 | N55: 3.58 | P55: 3.58
A56: 废矿物油与含矿物油废物 | B56: 900-220-08 | C56: 液态 | D56: 2.809 | J56: 2.809 | N56: 2.809 | P56: 2.809
A57: 清罐污泥 | B57: 900-220-08 | C57: 固态 | D57: 0 | J57: 0 | P57: 0
A58: 清罐油泥 | B58: 900-221-08 | C58: 固态 | D58: 0 | E58: =12.08 -> 12.08 | F58: =12.08 -> 12.08 | J58: 0 | P58: 0
A59: 废矿物油 | B59: 900-249-08 | C59: 液态 | D59: 240.29528 | E59: =0.1+6.945+0.3231+4.186+6.14+5.627 -> 23.3211 | G59: =12.35+4.68+22.3+16.7+22+22.1+5.66 -> 105.79 | J59: 157.82638 | L59: 46.51 | N59: 111.31638 | P59: 157.82638
A60: 废矿物油、废油桶 | B60: 900-249-08 | C60: 固态 | D60: 31.279 | E60: =3.9+0.44+2.955+1.56+0.26+0.01+3.576+0.8 -> 13.501 | F60: =0.051+0.04+0.048+0.44+1.28+3.235+0.26+0.01 -> 5.364 | H60: =3.9+3.48 -> 7.38 | J60: 32.036 | K60: 0.896 | L60: 31.14 | P60: 32.036
A61: 废矿物油、油泥 | B61: 900-249-08 | C61: 半固态 | D61: 0 | J61: 0 | P61: 0
A62: 废水、乳化液 | B62: 900-007-09 | C62: 液态 | D62: 169.2863 | E62: =5.012+0.4115 -> 5.4235 | F62: =5+0.948+4.8928+0.11+2.1875 -> 13.1383 | G62: =13.71+0.786+6.481+10.3+1 -> 32.277 | J62: 129.2945 | L62: =129.2945-20 -> 109.2945 | O62: 20 | P62: 129.2945
A63: 沉淀渣 | B63: 900-007-09 | C63: 半固态 | D63: 12.72 | F63: =12.72 -> 12.72 | J63: 0 | P63: 0
A64: 废乳化液 | B64: 900-005-09 | C64: 液态 | D64: 0 | J64: 0 | P64: 0
A65: 废乳化液 | B65: 900-006-09 | C65: 液态 | D65: 192.107 | E65: =11.87+21.95+4.654+9.8+6.88+31.11+0.11 -> 86.374 | F65: =5+7.5+3+3.2+2.93 -> 21.63 | G65: =8.68+21.69+3+19.12+12.7+4.11+4 -> 73.3 | J65: 183.551 | L65: =183.551-50 -> 133.551 | O65: 50 | P65: 183.551
A66: 砂轮沫 | B66: 900-006-09 | C66: 固态 | D66: 0 | E66: =4.008 -> 4.008 | J66: 4.008 | L66: 4.008 | P66: 4.008
A67: 废焦油渣 | B67: 252-005-11 | C67: 固态 | D67: 31.52 | F67: =11.52 -> 11.52 | J67: 20 | K67: 20 | P67: 20
A68: 废水汽提塔排重质烃 | B68: 252-009-11 | C68: 液态 | D68: 20.44 | J68: =D68+E68-F68-G68-H68-I68 -> 20.44 | L68: 20.44 | P68: 20.44
A69: 煤焦油、釜残 | B69: 900-013-11 | C69: 固态 | D69: 2.29 | E69: =13.1+18.22+5.947 -> 37.267 | F69: =13.1+18.22+5.947 -> 37.267 | J69: 2.29 | L69: 2.29 | P69: 2.29
A70: 煤焦油 | B70: 900-013-11 | C70: 液态 | D70: 2.89 | E70: =7.165 -> 7.165 | J70: 10.055 | K70: 10.055 | P70: 10.055
A71: 釜残 | B71: 900-013-11 | C71: 半固态 | D71: 293.192 | E71: =29.58+30.9+24.06 -> 84.54 | F71: =7+11.9+10 -> 28.9 | J71: 348.832 | K71: 348.832 | P71: 348.832
A72: 煤焦油 | B72: 451-003-11 | C72: 半固态 | D72: 0 | J72: 0 | P72: 0
A73: 煤焦油 | B73: 451-003-11 | C73: 液态 | D73: 52.02 | J73: 52.02 | L73: 52.02 | P73: 52.02
A74: 焦油渣 | B74: 451-003-11 | C74: 固态 | D74: 0 | J74: 0 | P74: 0
A75: 焦油渣 | B75: 451-001-11 | C75: 半固态 | D75: 0 | J75: 0 | P75: 0
A76: 漆渣 | B76: 900-250-12 | C76: 固态 | D76: 0 | J76: 0 | P76: 0
A77: 漆渣 | B77: 900-250-12 | C77: 半固态 | D77: 0 | E77: =0.76 -> 0.76 | J77: 0.76 | K77: 0.76 | P77: 0.76
A78: 油漆渣 | B78: 900-251-12 | C78: 固态 | D78: 0 | J78: 0 | P78: 0
A79: 废彩涂液 | B79: 900-252-12 | C79: 液态 | D79: 57.9 | J79: 57.9 | K79: 57.9 | P79: 57.9
A80: 废漆渣 | B80: 900-252-12 | C80: 固态 | D80: 172.344 | E80: =6.006+39.741+0.6875+7.66+51.3735+5.56+13.32+20.8885+1.2423+25.402+18.5245 -> 190.4053 | F80: =28.791+7.148+27.246+32.6925+13.5+11.7+17.941+14.0675+22.88+48.5023 -> 224.4683 | J80: 138.281 | K80: =138.281-40 -> 98.281 | O80: 40 | P80: 138.281
A81: 漆渣 | B81: 900-252-12 | C81: 半固态 | D81: 0 | E81: =10.27 -> 10.27 | J81: 10.27 | K81: 10.27 | P81: 10.27
A82: 废油墨 | B82: 900-253-12 | C82: 液态 | D82: 0 | J82: 0 | P82: 0
A83: 废油印纸/油墨盒 | B83: 900-253-12 | C83: 固态 | D83: 0 | E83: =0.299 -> 0.299 | F83: =0.299 -> 0.299 | J83: 0 | P83: 0
A84: 原材料废包装袋 | B84: 900-255-12 | C84: 固态 | D84: 0 | J84: 0 | P84: 0
A85: 废油漆 | B85: 900-256-12 | C85: 液态 | D85: 0 | E85: =0.044 -> 0.044 | F85: =0.044 -> 0.044 | J85: 0 | P85: 0
A86: 废油漆 | B86: 900-256-12 | C86: 半固态 | D86: 0 | J86: 0 | P86: 0
A87: 油墨渣子、油漆 | B87: 900-299-12 | C87: 半固态 | D87: 0 | E87: =0.26+0.0161+0.318 -> 0.5941 | F87: =0.26+0.3341 -> 0.5941 | J87: 0 | P87: 0
A88: 硒鼓墨盒 | B88: 900-299-12 | C88: 固态 | D88: 0.19 | E88: =0.1+0.15+0.1556+0.00636+0.02 -> 0.43196 | F88: =0.1+0.15+0.1556+0.19+0.00636 -> 0.60196 | J88: 0.02 | K88: 0.02 | P88: 0.02
A89: 油漆渣 | B89: 900-299-12 | C89: 液态 | D89: 4 | E89: =0.008 -> 0.008 | F89: =0.008+1.6 -> 1.608 | J89: 2.4 | K89: 2.4 | P89: 2.4
A90: 废油墨 | B90: 264-011-12 | C90: 液态 | D90: 0 | J90: 0 | P90: 0
A91: 油墨渣 | B91: 264-011-12 | C91: 固态 | D91: 0 | J91: 0 | P91: 0
A92: 污泥 | B92: 264-012-12 | C92: 固态 | D92: 0 | J92: 0 | P92: 0
A93: 废漆渣稀释剂混合物 | B93: 264-013-12 | C93: 液态 | D93: 0 | J93: 0 | P93: 0
A94: 发泡废料，废胶水 | B94: 900-014-13 | C94: 半固态 | D94: 0.05 | E94: =0.75 -> 0.75 | F94: =0.05 -> 0.05 | J94: 0.75 | K94: 0.75 | P94: 0.75
A95: 废胶水 | B95: 900-014-13 | C95: 液态 | D95: 0 | J95: 0 | P95: 0
A96: 发泡废料，废胶水 | B96: 900-014-13 | C96: 固态 | D96: 2.46 | E96: =4.188+15.28+9.55+7.64+4.9605 -> 41.6185 | F96: =4.188+22.39+2.44 -> 29.018 | J96: 15.0605 | K96: 15.0605 | P96: 15.0605
A97: 废树脂 | B97: 900-015-13 | C97: 固态 | D97: 0 | E97: =0.8+4.68 -> 5.48 | F97: =0.8+4.68 -> 5.48 | J97: 0 | P97: 0
A98: 废树脂 | B98: 900-015-13 | C98: 半固态 | D98: 0 | J98: 0 | P98: 0
A99: 废水 | B99: 900-016-13 | C99: 液态 | D99: 2 | F99: =2 -> 2 | J99: 0 | P99: 0
A100: 有机树脂废物 | B100: 900-016-13 | C100: 半固态 | D100: 5.76 | J100: 5.76 | K100: 5.76 | P100: 5.76
A101: 树脂胶 | B101: 265-101-13 | C101: 固态 | D101: 0 | J101: 0 | P101: 0
A102: 不合格有机树脂 | B102: 265-101-13 | C102: 半固态 | D102: 0 | J102: 0 | P102: 0
A103: 废母液 | B103: 265-102-13 | C103: 液态 | D103: 0 | J103: 0 | P103: 0
A104: 含盐废水 | B104: 265-103-13 | C104: 液态 | D104: 0 | J104: 0 | P104: 0
A105: 釜残与滤渣 | B105: 265-103-13 | C105: 半固态 | D105: 0 | J105: 0 | P105: 0
A106: 产品水解物、氯化镁盐 | B106: 265-103-13 | C106: 固态 | D106: 0 | J106: 0 | P106: 0
A107: 污泥 | B107: 265-104-13 | C107: 半固态 | D107: 0 | J107: 0 | P107: 0
A108: 污水处理站污泥 | B108: 265-104-13 | C108: 固态 | D108: 0 | J108: 0 | P108: =K108+L108+M108+N108+O108 -> 0
A109: 印刷版 | B109: 231-002-16 | C109: 固态 | D109: 0 | J109: 0 | P109: 0
A110: 废定影液 | B110: 266-009-16 | C110: 液态 | D110: 0 | J110: 0 | P110: 0
A111: 废胶片 | B111: 266-009-16 | C111: 固态 | D111: 0 | J111: 0 | P111: 0
A112: 废显影液 | B112: 900-019-16 | C112: 液态 | D112: 0 | J112: 0 | P112: 0
A113: 废显影液 | B113: 398-001-16 | C113: 液态 | D113: 0 | J113: 0 | P113: 0
A114: 助镀再生废渣 | B114: 336-051-17 | C114: 固态 | D114: 0 | J114: 0 | P114: 0
A115: 含铬污泥 | B115: 336-060-17 | C115: 固态 | D115: 0 | J115: 0 | P115: 0
A116: 镀铜溶液 | B116: 336-062-17 | C116: 液态 | D116: 0 | J116: 0 | P116: 0
A117: 含铜污泥 | B117: 336-062-17 | C117: 固态 | D117: 0 | J117: 0 | P117: 0
A118: 电镀污泥 | B118: 336-052-17 | C118: 固态 | D118: 0 | J118: 0 | P118: 0
A119: 污泥 | B119: 336-053-17 | C119: 固态 | D119: 0 | J119: 0 | P119: 0
A120: 镀镍废液 | B120: 336-055-17 | C120: 液态 | D120: 0 | J120: 0 | P120: 0
A121: 镀铁电解液 | B121: 336-063-17 | C121: 液态 | D121: 0 | J121: 0 | P121: 0
A122: 电镀污泥 | B122: 336-063-17 | C122: 半固态 | D122: 0 | J122: 0 | P122: 0
A123: 电镀污泥 | B123: 336-063-17 | C123: 固态 | D123: 0 | J123: 0 | P123: 0
A124: 磷化污泥 | B124: 336-064-17 | C124: 固态 | D124: 26.44 | E124: =0.032+10.89 -> 10.922 | F124: =22.1+4.34+10.922 -> 37.362 | J124: 0 | P124: 0
A125: 金属表面处理污泥 | B125: 336-064-17 | C125: 半固态 | D125: 0 | J125: 0 | P125: 0
A126: 金属表面处理污泥 | B126: 336-064-17 | C126: 液态 | D126: 20.34 | J126: 20.34 | L126: 0 | O126: 20.34 | P126: 20.34
A127: 污泥 | B127: 336-069-17 | C127: 半固态 | D127: 0 | J127: 0 | P127: 0
A128: 污泥 | B128: 336-069-17 | C128: 液态 | D128: 25.58 | J128: 25.58 | L128: 25.58 | P128: 25.58
A129: 污泥 | B129: 336-069-17 | C129: 固态 | D129: 0 | J129: 0 | P129: 0
A130: 活性炭 | B130: 772-005-18 | C130: 固态 | D130: 0 | J130: 0 | P130: 0
A131: 废UV灯管 | B131: 900-023-29 | C131: 固态 | D131: 0 | J131: 0 | P131: 0
A132: 废碱液 | B132: 251-015-35 | C132: 液态 | D132: 0 | E132: =10.65 -> 10.65 | J132: =D132+E132-F132-G132-H132-I132 -> 10.65 | L132: 10.65 | P132: 10.65
A133: 废碱泥 | B133: 251-015-35 | C133: 半固态 | D133: 16.84 | J133: 16.84 | L133: 0 | O133: 16.84 | P133: 16.84
A134: 片碱袋 | B134: 900-399-35 | C134: 固态 | D134: 0 | J134: 0 | P134: 0
A135: 清洁剂 | B135: 900-399-35 | C135: 液态 | D135: 0 | J135: 0 | P135: 0
A136: 废硫氢化钠残渣 | B136: 900-399-35 | C136: 半固态 | D136: 0 | J136: 0 | P136: 0
A137: 废碱液 | B137: 900-352-35 | C137: 液态 | D137: 0 | E137: =7.24 -> 7.24 | J137: 7.24 | L137: 7.24 | P137: 7.24
A138: 废碱液 | B138: 900-354-35 | C138: 液态 | D138: 0 | J138: 0 | P138: 0
A139: 废抗燃油 | B139: 900-033-37 | C139: 液态 | D139: 0 | J139: 0 | P139: 0
A140: 含酚废水 | B140: 261-070-39 | C140: 液态 | D140: 232.14 | E140: =36.02 -> 36.02 | J140: 268.16 | N140: 268.16 | P140: 268.16
A141: 废活性炭 | B141: 261-071-39 | C141: 固态 | D141: 0 | J141: 0 | P141: 0
A142: 污泥 | B142: 261-084-45 | C142: 半固态 | D142: 37.8 | F142: =14+15+8.8 -> 37.8 | J142: 0 | P142: 0
A143: 含油废物 | B143: 900-041-49 | C143: 固态 | D143: 225.44 | E143: =12.616+10.633+7.173+10.833+6.271+3.406+4.576+24.533+41.635545+0.58+19.17+7.62+3.96+11.5655+33.23339+2.781+69.9942+24.02+24.864 -> 319.464635 | F143: =17.8675+22.8475+16.968+1.098+43.424+14.740495+12.48+15.45805+17.7755+25.26439+32.97 -> 220.893435 | H143: =3.48+5.44+4.28+4.3 -> 17.5 | J143: 306.5112 | K143: 252.039 | L143: 54.4722 | P143: 306.5112
A144: 含有或沾染危险废物的废弃物 | B144: 900-041-49 | C144: 半固态 | D144: 0 | J144: 0 | P144: 0
A145: 电捕焦油 | B145: 900-041-49 | C145: 液态 | D145: 0 | J145: 0 | P145: 0
A146: 废酸碱袋 | B146: 900-042-49 | C146: 固态 | D146: 0.307 | E146: =0.133+0.246+0.668 -> 1.047 | F146: =0.307+0.133+0.246+0.668 -> 1.354 | J146: 0 | P146: 0
A147: 污泥 | B147: 772-006-49 | C147: 固态 | D147: 0 | E147: =3+4.6 -> 7.6 | F147: =3+4.6 -> 7.6 | J147: 0 | P147: 0
A148: 污泥 | B148: 772-006-49 | C148: 半固态 | D148: 0 | J148: 0 | P148: 0
A149: 废活性炭 | B149: 900-039-49 | C149: 固态 | D149: 0.314 | E149: =1.063+0.0175+6.68+1.76+2.0275+0.75+0.41+5.06 -> 17.768 | F149: =0.314+1.063+0.8775+5.82+4.5375+0.13 -> 12.742 | J149: 5.34 | L149: 0 | O149: 5.34 | P149: 5.34
A150: 废水污泥 | B150: 900-046-49 | C150: 固态 | D150: 0 | J150: 0 | P150: 0
A151: 污泥 | B151: 900-046-49 | C151: 半固态 | D151: 0 | J151: 0 | P151: 0
A152: 过期化学药品 | B152: 900-047-49 | C152: 固态 | D152: 0.167 | E152: =1.192+0.2696+2.8149-0.58+0.84+0.5739+2.94-0.2075 -> 7.8429 | F152: =0.167+1.4616+0.7579+2.317-0.2075 -> 4.496 | J152: 3.5139 | L152: =3.5139 -> 3.5139 | P152: 3.5139
A153: 乙腈、异丙酮、废液 | B153: 900-047-49 | C153: 液态 | D153: 41.001 | E153: =0.3+0.74+3.1248+4.005+5.9014+5.591+20.96727+0.16+12.39715+3.6616+3.9605+1+0.2075 -> 62.01622 | F153: =1.936+2.645+1.44232+0.2075 -> 6.23082 | G153: =3.34+4.7281+12.04645+30.84255+3.31 -> 54.2671 | J153: 42.5193 | L153: =42.5193 -> 42.5193 | P153: 42.5193
A154: 过期药品 | B154: 900-999-49 | C154: 固态 | D154: 1.9 | F154: =1.9 -> 1.9 | J154: 0 | P154: 0
A155: 过期面膜原料、残液 | B155: 900-999-49 | C155: 液态 | D155: 29.525 | E155: =0.92 -> 0.92 | G155: =0.045 -> 0.045 | J155: 30.4 | L155: 30.4 | P155: 30.4
A156: 废催化剂 | B156: 261-152-50 | C156: 固态 | D156: 0 | J156: 0 | P156: 0
A157: 小计： | D157: 4952.23087 | E157: =SUM(E4:E156) -> 1304.077315 | F157: 1029.501415 | G157: 334.3593 | H157: 24.88 | I157: 1125.3 | J157: 3742.26747 | K157: =SUM(K4:K156) -> 891.5465 | L157: 925.3519 | M157: 74.28 | N157: 1641.21907 | O157: 209.87 | P157: 3742.26747
A158: 合计： | F158: =F157+G157+H157 -> 1388.740715
